bitfinex-derivatives/quotes_BNBF0:USTF0_20250509
["timestamp","ask_amount","ask_price","bid_price","bid_amount"]
[1746775877890,0.29045434,633.6,632.77,1.12707061]
[1746775878591,0.56530004,633.59,632.77,1.12707061]
[1746775878791,0.29045434,633.58,632.77,1.12707061]
[1746775881497,0.27487392,633.57,632.77,1.12707061]
[1746775881898,0.29045434,633.56,632.77,1.12707061]
[1746775884401,0.29045434,633.63,632.77,1.12707061]
[1746775884600,0.27485004,633.59,632.77,1.12707061]
[1746775884901,0.29045434,633.58,632.77,1.12707061]
[1746775887807,0.29045434,633.63,632.77,1.12707061]
[1746775888107,0.29045434,633.57,632.77,1.12707061]
[1746775888407,0.29045434,633.63,632.77,1.12707061]
[1746775889308,0.983,633.62,632.77,1.12707061]
[1746775889506,0.983,633.62,632.77,1.76707061]
[1746775895416,0.29030805,633.61,632.77,1.76707061]
[1746775896715,0.983,633.62,632.77,1.76707061]
[1746775896914,0.29033165,633.61,632.77,1.76707061]
[1746775898319,0.983,633.62,632.77,1.76707061]
[1746775899620,0.29040303,633.61,632.77,1.76707061]
[1746775900320,0.983,633.62,632.77,1.76707061]
[1746775901220,0.949,633.61,632.77,1.76707061]
[1746775901823,0.29043185,633.6,632.77,1.76707061]
[1746775903522,0.27486089,633.59,632.77,1.76707061]
[1746775903721,0.29043185,633.58,632.77,1.76707061]
[1746775905123,0.27486089,633.59,632.77,1.76707061]
[1746775905419,0.29040408,633.58,632.77,1.76707061]
[1746775908525,0.27487175,633.57,632.77,1.76707061]
[1746775908722,0.29040408,633.56,632.77,1.76707061]
[1746775912728,0.27490866,633.55,632.77,1.76707061]
[1746775913030,0.29040408,633.54,632.77,1.76707061]
[1746775913222,0.27490866,633.55,632.77,1.76707061]
[1746775913529,0.29051208,633.54,632.77,1.76707061]
[1746775914528,0.27491083,633.53,632.77,1.76707061]
[1746775914928,0.29051208,633.52,632.77,1.76707061]
[1746775916025,0.29051208,633.56,632.77,1.76707061]
[1746775917230,0.29051208,633.56,632.77,1.12707061]
[1746775917535,0.862,633.57,632.77,1.12707061]
[1746775917930,0.2903781,633.56,632.77,1.12707061]
[1746775921434,0.2903781,633.6,632.77,1.12707061]
[1746775921632,0.2748978,633.55,632.77,1.12707061]
[1746775922029,0.2903781,633.54,632.77,1.12707061]
[1746775922833,0.2903781,633.53,632.77,1.12707061]
[1746775923137,0.2903781,633.54,632.77,1.12707061]
[1746775924337,0.2748978,633.55,632.77,1.12707061]
[1746775924638,0.29053797,633.54,632.77,1.12707061]
[1746775925840,0.2748978,633.55,632.77,1.12707061]
[1746775926031,0.29056103,633.54,632.77,1.12707061]
[1746775926638,0.29056103,633.6,632.77,1.12707061]
[1746775927240,0.27493907,633.59,632.77,1.12707061]
[1746775927735,0.2905702,633.58,632.77,1.12707061]
[1746775928843,0.2905702,633.57,632.77,1.12707061]
[1746775929241,0.27493907,633.59,632.77,1.12707061]
[1746775929242,0.2905702,633.56,632.77,1.12707061]
[1746775929541,0.2905702,633.55,632.77,1.12707061]
[1746775929943,0.2905702,633.58,632.77,1.12707061]
[1746775930243,0.2905702,633.57,632.77,1.12707061]
[1746775930644,0.27493907,633.59,632.77,1.12707061]
[1746775930846,0.29062363,633.58,632.77,1.12707061]
[1746775931147,0.29062363,633.57,632.77,1.12707061]
[1746775931343,0.29062363,633.58,632.77,1.12707061]
[1746775931743,0.29062363,633.57,632.77,1.12707061]
[1746775932043,0.29062363,633.56,632.77,1.12707061]
[1746775932543,0.29062363,633.55,632.77,1.12707061]
[1746775932945,0.29062363,633.54,632.77,1.12707061]
[1746775933243,0.29062363,633.53,632.77,1.12707061]
[1746775933445,0.56559311,633.53,632.77,1.12707061]
[1746775933745,0.29062363,633.52,632.77,1.12707061]
[1746775934041,0.29062363,633.51,632.77,1.12707061]
[1746775934245,1.24462363,633.51,632.77,1.12707061]
[1746775934441,0.29062363,633.5,632.77,1.12707061]
[1746775934646,0.954,633.51,632.77,1.12707061]
[1746775934944,0.29067129,633.5,632.77,1.12707061]
[1746775935244,0.29067129,633.49,632.77,1.12707061]
[1746775935545,0.29067129,633.48,632.77,1.12707061]
[1746775935844,0.29067129,633.47,632.77,1.12707061]
[1746775936244,0.29067129,633.46,632.77,1.12707061]
[1746775936544,0.29067129,633.45,632.77,1.12707061]
[1746775936840,0.29067129,633.44,632.77,0.31607061]
[1746775937238,0.29067129,633.43,632.77,0.31607061]
[1746775937443,0.29067129,633.42,632.77,0.31607061]
[1746775937643,0.29067129,633.41,632.77,0.31607061]
[1746775937945,0.29067129,633.4,632.77,0.31607061]
[1746775938540,0.29067129,633.39,632.77,0.31607061]
[1746775939246,0.29067129,633.38,632.77,0.31607061]
[1746775939444,0.56571792,633.38,632.77,0.31607061]
[1746775939646,0.29067129,633.37,632.77,0.31607061]
[1746775939947,0.29067129,633.36,632.77,0.31607061]
[1746775940248,0.29067129,633.35,632.77,0.31607061]
[1746775940647,0.29067129,633.34,632.77,0.31607061]
[1746775941048,0.29067129,633.33,632.77,0.31607061]
[1746775941242,0.29067129,633.32,632.77,0.31607061]
[1746775941743,0.29067129,633.31,632.77,0.31607061]
[1746775941947,0.29067129,633.3,632.77,0.31607061]
[1746775942446,0.27503359,633.29,632.77,0.31607061]
[1746775942647,0.56570488,633.29,632.77,0.31607061]
[1746775942849,0.29067129,633.28,632.77,0.31607061]
[1746775943149,0.29067129,633.27,632.77,0.31607061]
[1746775943344,0.27503359,633.29,632.77,0.31607061]
[1746775943643,0.29074743,633.28,632.77,0.31607061]
[1746775943946,0.29074743,633.27,632.77,0.31607061]
[1746775944245,0.29074743,633.26,632.77,0.31607061]
[1746775944749,0.29074743,633.28,632.77,0.31607061]
[1746775944946,0.29074743,633.25,632.77,0.31607061]
[1746775945349,0.29074743,633.28,632.77,0.31607061]
[1746775945649,0.29074743,633.27,632.77,0.31607061]
[1746775945949,0.29074743,633.26,632.77,0.31607061]
[1746775946249,0.29074743,633.28,632.77,0.31607061]
[1746775946548,0.29074743,633.27,632.77,0.31607061]
[1746775947045,0.29074743,633.26,632.77,0.31607061]
[1746775947447,0.29074743,633.28,632.77,0.31607061]
[1746775950551,0.29074743,633.5,632.77,0.31607061]
[1746775951547,0.56574842,633.49,632.77,0.31607061]
[1746775951950,0.29074743,633.48,632.77,0.31607061]
[1746775952352,0.29074743,633.47,632.77,0.31607061]
[1746775952551,0.29074743,633.46,632.77,0.31607061]
[1746775952854,0.29074743,633.45,632.77,0.31607061]
[1746775953253,0.29074743,633.44,632.77,0.31607061]
[1746775953554,0.56577015,633.44,632.77,0.31607061]
[1746775953850,0.27502272,633.44,632.77,0.31607061]
[1746775954153,0.29074743,633.43,632.77,0.31607061]
[1746775956454,0.29074743,633.42,632.77,0.31607061]
[1746775956755,0.976,633.7,632.77,0.31607061]
[1746775957255,1.876,633.7,632.77,0.31607061]
[1746775957456,0.29074987,633.69,632.77,0.31607061]
[1746775957649,0.29074987,633.68,632.77,0.31607061]
[1746775957855,0.29074987,633.67,632.77,0.31607061]
[1746775958256,0.29074987,633.66,632.77,0.31607061]
[1746775958551,0.29074987,633.65,632.77,0.31607061]
[1746775958957,0.29074987,633.64,632.77,0.31607061]
[1746775959255,0.9114175,633.69,632.77,0.31607061]
[1746775959256,0.29074987,633.63,632.77,0.31607061]
[1746775959755,0.29074987,633.62,632.77,0.31607061]
[1746775959957,0.29074987,633.61,632.77,0.31607061]
[1746775960558,0.56577585,633.6,632.77,0.31607061]
[1746775960953,0.29074987,633.59,632.77,0.31607061]
[1746775961357,0.27502598,633.6,632.77,0.31607061]
[1746775961558,0.29074551,633.58,632.77,0.31607061]
[1746775961859,0.29074551,633.57,632.77,0.31607061]
[1746775962158,0.29074551,633.56,632.77,0.31607061]
[1746775962559,0.29074551,633.55,632.77,0.31607061]
[1746775962957,0.29074551,633.54,632.77,0.31607061]
[1746775963154,0.27502598,633.6,632.77,0.31607061]
[1746775963155,0.29074551,633.53,632.77,0.31607061]
[1746775963354,0.29074551,633.52,632.77,0.31607061]
[1746775963658,0.29074551,633.51,632.77,0.31607061]
[1746775963859,0.29074551,633.5,632.77,0.31607061]
[1746775964160,0.29074551,633.49,632.77,0.31607061]
[1746775964361,0.29074551,633.48,632.77,0.31607061]
[1746775964554,0.29074551,633.47,632.77,0.31607061]
[1746775964874,0.29074551,633.46,632.77,0.31607061]
[1746775965063,0.29074551,633.45,632.77,0.31607061]
[1746775965255,0.29074551,633.44,632.77,0.31607061]
[1746775965459,0.29074551,633.43,632.77,0.31607061]
[1746775965759,0.29074551,633.42,632.77,0.31607061]
[1746775965953,0.29074551,633.41,632.77,0.31607061]
[1746775966155,0.29074551,633.4,632.77,0.31607061]
[1746775966962,0.29074551,633.39,632.77,0.31607061]
[1746775967964,0.29074551,633.38,632.77,0.31607061]
[1746775968464,0.29074551,633.37,632.77,0.31607061]
[1746775969063,0.29074551,633.59,632.77,0.31607061]
[1746775969357,0.29074551,633.36,632.77,0.31607061]
[1746775969562,0.29074551,633.58,632.77,0.31607061]
[1746775969961,0.29074551,633.58,632.77,0.92707061]
[1746775970164,0.29074551,633.57,632.77,0.92707061]
[1746775970363,0.27502598,633.6,632.77,0.92707061]
[1746775970663,0.29066968,633.59,632.77,0.92707061]
[1746775971064,0.29066968,633.58,632.77,0.92707061]
[1746775971265,0.29066968,633.57,632.77,0.92707061]
[1746775971562,0.29066968,633.56,632.77,0.92707061]
[1746775971972,0.29066968,633.55,632.77,0.92707061]
[1746775972261,0.29066968,633.54,632.77,0.92707061]
[1746775972666,0.29066968,633.53,632.77,0.92707061]
[1746775972966,0.29066968,633.52,632.77,0.92707061]
[1746775973668,0.29066968,633.51,632.77,0.92707061]
[1746775973863,1.48066968,633.51,632.77,0.92707061]
[1746775974166,0.29066968,633.5,632.77,0.92707061]
[1746775974563,0.93466968,633.49,632.77,0.92707061]
[1746775974962,0.29066968,633.48,632.77,0.92707061]
[1746775975263,0.29066968,633.47,632.77,0.92707061]
[1746775975567,0.29066968,633.46,632.77,0.92707061]
[1746775976069,0.29066968,633.45,632.77,0.92707061]
[1746775976571,0.29066968,633.44,632.77,0.92707061]
[1746775976770,0.29066968,633.43,632.77,0.92707061]
[1746775977071,0.29066968,633.42,632.77,0.92707061]
[1746775977371,0.29066968,633.41,632.77,0.92707061]
[1746775977871,0.29066968,633.4,632.77,0.92707061]
[1746775978270,0.29066968,633.48,632.77,0.92707061]
[1746775978471,0.27499121,633.39,632.77,0.92707061]
[1746775978871,0.29066968,633.47,632.77,0.92707061]
[1746775979170,0.29066968,633.46,632.77,0.92707061]
[1746775979470,0.29066968,633.45,632.77,0.92707061]
[1746775979666,0.56566089,633.45,632.77,0.92707061]
[1746775979970,0.29066968,633.44,632.77,0.92707061]
[1746775980671,0.29066968,633.43,632.77,0.92707061]
[1746775981172,0.29066968,633.42,632.77,0.92707061]
[1746775981473,0.56566089,633.42,632.77,0.92707061]
[1746775981874,0.29066968,633.41,632.77,0.92707061]
[1746775982072,0.29066968,633.4,632.77,0.92707061]
[1746775982368,0.29066968,633.39,632.77,0.92707061]
[1746775982573,0.29066968,633.38,632.77,0.92707061]
[1746775982968,0.29066968,633.37,632.77,0.92707061]
[1746775983172,0.29066968,633.36,632.77,0.92707061]
[1746775983567,0.29066968,633.35,632.77,0.92707061]
[1746775983874,0.29066968,633.48,632.77,0.92707061]
[1746775984177,0.29066968,633.47,632.77,0.92707061]
[1746775984366,0.29066968,633.46,632.77,0.92707061]
[1746775984774,0.29066968,633.45,632.77,0.92707061]
[1746775985074,0.29066968,633.44,632.77,0.92707061]
[1746775985275,0.29066968,633.43,632.77,0.92707061]
[1746775985574,0.29066968,633.42,632.77,0.92707061]
[1746775985980,0.29066968,633.41,632.77,0.92707061]
[1746775986176,0.29066968,633.4,632.77,0.92707061]
[1746775986571,0.29066968,633.39,632.77,0.92707061]
[1746775986775,0.29066968,633.38,632.77,0.92707061]
[1746775986975,0.29066968,633.37,632.77,0.92707061]
[1746775987376,0.29066968,633.36,632.77,0.92707061]
[1746775987672,0.29066968,633.35,632.77,0.92707061]
[1746775987876,0.29066968,633.34,632.77,0.92707061]
[1746775988279,0.29066968,633.33,632.77,0.92707061]
[1746775988677,0.29066968,633.32,632.77,0.92707061]
[1746775988977,0.29066968,633.31,632.77,0.92707061]
[1746775989486,0.29066968,633.3,632.77,0.92707061]
[1746775989785,0.29066968,633.29,632.77,0.92707061]
[1746775990086,0.644,633.49,632.77,0.92707061]
[1746775990286,0.29073722,633.48,632.77,0.92707061]
[1746775990484,0.56576755,633.48,632.77,0.92707061]
[1746775990786,0.29073722,633.47,632.77,0.92707061]
[1746775990981,0.29073722,633.46,632.77,0.92707061]
[1746775991386,0.29073722,633.45,632.77,0.92707061]
[1746775991686,0.29073722,633.44,632.77,0.92707061]
[1746775992379,0.29073722,633.43,632.77,0.92707061]
[1746775992786,0.29073722,633.42,632.77,0.92707061]
[1746775992980,0.29073722,633.42,632.77,0.31607061]
[1746775993183,0.29073722,633.47,632.77,0.31607061]
[1746775995788,0.29073722,633.5,632.77,0.31607061]
[1746775996588,0.27504663,633.49,632.77,0.31607061]
[1746775996982,0.29073722,633.48,632.77,0.31607061]
[1746775998687,0.27505533,633.47,632.77,0.31607061]
[1746775999290,0.29073722,633.46,632.77,0.31607061]
[1746775999593,0.29073722,633.45,632.77,0.31607061]
[1746775999891,0.29073722,633.44,632.77,0.31607061]
[1746776000292,0.29073722,633.43,632.77,0.31607061]
[1746776000591,0.29073722,633.42,632.77,0.31607061]
[1746776000792,0.27505533,633.47,632.77,0.31607061]
[1746776000987,0.29079556,633.46,632.77,0.31607061]
[1746776001389,0.29079556,633.45,632.77,0.31607061]
[1746776001589,1.47785524,633.45,632.77,0.31607061]
[1746776001789,0.29079556,633.44,632.77,0.31607061]
[1746776002089,0.29079556,633.43,632.77,0.31607061]
[1746776002393,0.29079556,633.42,632.77,0.31607061]
[1746776002693,0.29079556,633.41,632.77,0.31607061]
[1746776002995,0.29079556,633.4,632.77,0.31607061]
[1746776003393,0.29079556,633.39,632.77,0.31607061]
[1746776003993,0.29079556,633.38,632.77,0.31607061]
[1746776004295,0.29079556,633.37,632.77,0.31607061]
[1746776004695,0.29079556,633.36,632.77,0.31607061]
[1746776004895,0.29079556,633.35,632.77,0.31607061]
[1746776005290,0.29079556,633.34,632.77,0.31607061]
[1746776005595,0.29079556,633.33,632.77,0.31607061]
[1746776007598,0.29079556,633.32,632.77,0.31607061]
[1746776007897,0.29079556,633.44,632.77,0.31607061]
[1746776008398,0.29079556,633.43,632.77,0.31607061]
[1746776008599,0.56587698,633.43,632.77,0.31607061]
[1746776008791,0.29079556,633.42,632.77,0.31607061]
[1746776009097,0.29079556,633.41,632.77,0.31607061]
[1746776009592,0.29079556,633.4,632.77,0.31607061]
[1746776010200,0.29079556,633.39,632.77,0.31607061]
[1746776010499,0.29079556,633.38,632.77,0.31607061]
[1746776010794,0.29079556,633.37,632.77,0.31607061]
[1746776011198,0.29079556,633.36,632.77,0.31607061]
[1746776011699,0.29079556,633.38,632.77,0.31607061]
[1746776011900,0.29079556,633.37,632.77,0.31607061]
[1746776012199,0.29079556,633.38,632.77,0.31607061]
[1746776013601,0.29079556,633.37,632.77,0.31607061]
[1746776014001,0.29079556,633.36,632.77,0.31607061]
[1746776014302,0.29079556,633.35,632.77,0.31607061]
[1746776014500,0.56583567,633.35,632.77,0.31607061]
[1746776014696,0.29079556,633.34,632.77,0.31607061]
[1746776015001,0.29079556,633.33,632.77,0.31607061]
[1746776015301,0.29079556,633.32,632.77,0.31607061]
[1746776015702,0.29079556,633.31,632.77,0.31607061]
[1746776016105,0.29079556,633.3,632.77,0.31607061]
[1746776016403,0.29079556,633.29,632.77,0.31607061]
[1746776016704,0.29079556,633.28,632.77,0.31607061]
[1746776017104,0.29079556,633.27,632.77,0.31607061]
[1746776017404,0.29079556,633.26,632.77,0.31607061]
[1746776017905,0.29079556,633.25,632.77,0.31607061]
[1746776018205,0.29079556,633.24,632.77,0.31607061]
[1746776018607,0.29079556,633.34,632.77,0.31607061]
[1746776019006,0.29079556,633.33,632.77,0.31607061]
[1746776019502,0.29079556,633.32,632.77,0.31607061]
[1746776019807,0.29079556,633.31,632.77,0.31607061]
[1746776020006,0.29079556,633.3,632.77,0.31607061]
[1746776020302,0.29079556,633.29,632.77,0.31607061]
[1746776020607,0.29079556,633.28,632.77,0.31607061]
[1746776020910,0.29079556,633.31,632.77,0.31607061]
[1746776021510,0.29079556,633.3,632.77,0.31607061]
[1746776021909,0.29079556,633.29,632.77,0.31607061]
[1746776022211,0.29079556,633.28,632.77,0.31607061]
[1746776022512,0.56588241,633.28,632.77,0.31607061]
[1746776022811,0.29079556,633.27,632.77,0.31607061]
[1746776023212,0.29079556,633.26,632.77,0.31607061]
[1746776023612,0.29079556,633.27,632.77,0.31607061]
[1746776024112,0.741,633.26,632.77,0.31607061]
[1746776024512,0.29079556,633.25,632.77,0.31607061]
[1746776025015,0.29079556,633.24,632.77,0.31607061]
[1746776025212,0.29079556,633.23,632.77,0.31607061]
[1746776025606,0.29079556,633.22,632.77,0.31607061]
[1746776025908,0.29079556,633.21,632.77,0.31607061]
[1746776026214,0.29079556,633.2,632.77,0.31607061]
[1746776026512,0.29079556,633.19,632.77,0.31607061]
[1746776026809,0.29079556,633.18,632.77,0.31607061]
[1746776027312,0.29079556,633.17,632.77,0.31607061]
[1746776027513,0.29079556,633.16,632.77,0.31607061]
[1746776027809,0.29079556,633.15,632.77,0.31607061]
[1746776028110,0.29079556,633.14,632.77,0.31607061]
[1746776029309,0.56593896,633.13,632.77,0.31607061]
[1746776029609,0.29079556,633.12,632.77,0.31607061]
[1746776030014,0.29079556,633.11,632.77,0.31607061]
[1746776030314,0.29079556,633.1,632.77,0.31607061]
[1746776030515,0.29079556,633.1,632.76,0.10191502]
[1746776030715,0.29079556,633.09,632.62,0.819]
[1746776031025,0.29079556,633.08,632.63,0.31614055]
[1746776031214,0.29079556,633.11,632.63,0.31614055]
[1746776031616,0.2751434,633.07,632.63,0.31614055]
[1746776031813,0.29079556,633.06,632.63,0.31614055]
[1746776034717,0.56594223,633.05,632.63,0.31614055]
[1746776035013,0.29079556,633.04,632.63,0.31614055]
[1746776035315,0.29079556,633.03,632.63,0.31614055]
[1746776035620,0.29079556,633.02,632.63,0.31614055]
[1746776035915,0.29079556,633.01,632.63,0.31614055]
[1746776036419,0.29079556,633.0,632.63,0.31614055]
[1746776036920,0.29079556,632.99,632.63,0.31614055]
[1746776037420,0.29079556,632.98,632.63,0.31614055]
[1746776037614,0.29079556,632.97,632.63,0.31614055]
[1746776038020,0.29079556,632.96,632.63,0.31614055]
[1746776038319,0.29079556,632.95,632.63,0.31614055]
[1746776038714,0.29079556,632.94,632.63,0.31614055]
[1746776039113,0.29079556,632.93,632.63,0.31614055]
[1746776039418,0.29079556,632.92,632.63,0.31614055]
[1746776039718,0.29079556,632.91,632.63,0.31614055]
[1746776040320,0.29079556,632.9,632.63,0.31614055]
[1746776040519,0.5659988,632.9,632.63,0.31614055]
[1746776040815,0.29079556,632.89,632.63,0.31614055]
[1746776041417,0.27520324,632.9,632.63,0.31614055]
[1746776042022,0.29082869,632.89,632.63,0.31614055]
[1746776049534,0.29082869,632.94,632.63,0.31614055]
[1746776050635,0.2751434,632.93,632.63,0.31614055]
[1746776050834,0.29082869,632.92,632.63,0.31614055]
[1746776052436,0.29082869,632.94,632.63,0.31614055]
[1746776052636,0.27513253,632.91,632.63,0.31614055]
[1746776052938,0.29082869,632.9,632.63,0.31614055]
[1746776055632,0.29082869,633.36,632.63,0.31614055]
[1746776055931,0.29082869,633.35,632.63,0.31614055]
[1746776056236,0.29082869,633.34,632.63,0.31614055]
[1746776056537,0.29082869,633.33,632.63,0.31614055]
[1746776056936,0.29082869,633.32,632.63,0.31614055]
[1746776057132,0.29082869,633.31,632.63,0.31614055]
[1746776057338,0.29082869,633.3,632.63,0.31614055]
[1746776057631,0.809,633.33,632.63,0.31614055]
[1746776058037,0.2907683,633.32,632.63,0.31614055]
[1746776058437,0.2907683,633.31,632.63,0.31614055]
[1746776058736,0.2907683,633.3,632.63,0.31614055]
[1746776059338,0.2907683,633.29,632.63,0.31614055]
[1746776059537,0.56584646,633.29,632.63,0.31614055]
[1746776059738,0.2907683,633.28,632.63,0.31614055]
[1746776059938,0.2907683,633.27,632.63,0.31614055]
[1746776060333,0.2907683,633.26,632.63,0.31614055]
[1746776060538,0.2907683,633.25,632.63,0.31614055]
[1746776060835,0.2907683,633.24,632.63,0.31614055]
[1746776061539,0.5658508,633.23,632.63,0.31614055]
[1746776061739,0.2907683,633.22,632.63,0.31614055]
[1746776062141,0.2907683,633.21,632.63,0.31614055]
[1746776062343,0.2907683,633.2,632.63,0.31614055]
[1746776062744,0.2907683,633.22,632.63,0.31614055]
[1746776064742,0.2907683,633.32,632.63,0.31614055]
[1746776065546,0.27506294,633.31,632.63,0.31614055]
[1746776066049,0.2907683,633.3,632.63,0.31614055]
[1746776067648,0.5658095,633.29,632.63,0.31614055]
[1746776068148,0.2907683,633.28,632.63,0.31614055]
[1746776068447,0.2907683,633.27,632.63,0.31614055]
[1746776068648,0.2907683,633.26,632.63,0.31614055]
[1746776069048,0.2907683,633.25,632.63,0.31614055]
[1746776069349,0.2907683,633.24,632.63,0.31614055]
[1746776069748,0.2907683,633.28,632.63,0.31614055]
[1746776069945,0.2907683,633.27,632.63,0.31614055]
[1746776070250,0.2907683,633.26,632.63,0.31614055]
[1746776070644,0.2907683,633.28,632.63,0.31614055]
[1746776070949,0.2907683,633.27,632.63,0.31614055]
[1746776071248,0.2907683,633.26,632.63,0.31614055]
[1746776071648,0.27503033,633.25,632.63,0.31614055]
[1746776072053,0.2907683,633.24,632.63,0.31614055]
[1746776072450,0.2907683,633.23,632.63,0.31614055]
[1746776072751,0.2907683,633.24,632.63,0.31614055]
[1746776073552,0.2907683,633.32,632.63,0.31614055]
[1746776074553,0.27503033,633.31,632.63,0.31614055]
[1746776075452,0.2907683,633.3,632.63,0.31614055]
[1746776076653,0.2907683,633.3,632.64,0.741]
[1746776076774,0.2907683,633.32,632.65,0.31613056]
[1746776077653,0.27502272,633.31,632.65,0.31613056]
[1746776078152,0.2907683,633.3,632.65,0.31613056]
[1746776083056,0.809,633.33,632.65,0.31613056]
[1746776083255,0.29073473,633.29,632.65,0.31613056]
[1746776083559,0.29073473,633.28,632.65,0.31613056]
[1746776083958,0.29073473,633.27,632.65,0.31613056]
[1746776084159,1.05573473,633.27,632.65,0.31613056]
[1746776084356,0.29073473,633.26,632.65,0.31613056]
[1746776084659,0.29073473,633.25,632.65,0.31613056]
[1746776085258,0.29073473,633.24,632.65,0.31613056]
[1746776085656,0.29073473,633.23,632.65,0.31613056]
[1746776085959,0.29073473,633.22,632.65,0.31613056]
[1746776086255,0.29073473,633.21,632.65,0.31613056]
[1746776086559,0.29073473,633.2,632.65,0.31613056]
[1746776087060,0.29073473,633.19,632.65,0.31613056]
[1746776087359,0.29073473,633.18,632.65,0.31613056]
[1746776087659,0.29073473,633.17,632.65,0.31613056]
[1746776087959,0.29073473,633.16,632.65,0.31613056]
[1746776088662,0.29073473,633.2,632.65,0.31613056]
[1746776088961,0.29073473,633.19,632.65,0.31613056]
[1746776089263,0.29073473,633.18,632.65,0.31613056]
[1746776089561,0.56580745,633.18,632.65,0.31613056]
[1746776089761,0.29073473,633.17,632.65,0.31613056]
[1746776089957,0.27507272,633.18,632.65,0.31613056]
[1746776090462,0.2907593,633.17,632.65,0.31613056]
[1746776091862,0.2907593,633.18,632.65,0.31613056]
[1746776092565,0.27508577,633.17,632.65,0.31613056]
[1746776093064,0.2907593,633.16,632.65,0.31613056]
[1746776094259,0.27508577,633.17,632.65,0.31613056]
[1746776094465,1.036,633.19,632.65,0.31613056]
[1746776094662,0.2907586,633.16,632.65,0.31613056]
[1746776094964,0.2907586,633.18,632.65,0.31613056]
[1746776095566,0.27508577,633.17,632.65,0.31613056]
[1746776096061,0.2907586,633.16,632.65,0.31613056]
[1746776097668,0.2907586,633.18,632.65,0.31613056]
[1746776098667,0.27508577,633.17,632.65,0.31613056]
[1746776099073,0.27508577,633.17,632.65,1.17013056]
[1746776099367,0.2907586,633.16,632.65,1.17013056]
[1746776100767,0.2907586,633.18,632.65,1.17013056]
[1746776101568,0.27508468,633.17,632.65,1.17013056]
[1746776101762,0.2907586,633.16,632.65,1.17013056]
[1746776103569,0.2907586,633.18,632.65,1.17013056]
[1746776104573,0.27508468,633.17,632.65,1.17013056]
[1746776105073,0.2907586,633.16,632.65,1.17013056]
[1746776106770,0.2907586,633.18,632.65,1.17013056]
[1746776106977,1.036,633.19,632.65,1.17013056]
[1746776107375,0.29069853,633.18,632.65,1.17013056]
[1746776107576,0.56573755,633.18,632.65,1.17013056]
[1746776107774,0.29069853,633.17,632.65,1.17013056]
[1746776108274,0.29069853,633.17,632.65,1.97513056]
[1746776109675,0.29069853,633.18,632.65,1.97513056]
[1746776110579,0.27503468,633.17,632.65,1.97513056]
[1746776111177,0.29069853,633.16,632.65,1.97513056]
[1746776112077,0.27503468,633.17,632.65,1.97513056]
[1746776112378,0.29060957,633.16,632.65,1.97513056]
[1746776115178,1.036,633.19,632.65,1.97513056]
[1746776115478,0.29055321,633.18,632.65,1.97513056]
[1746776117273,0.789,633.17,632.65,1.97513056]
[1746776117677,0.29055321,633.16,632.65,1.97513056]
[1746776121180,1.086,633.15,632.65,1.97513056]
[1746776141897,0.825,633.14,632.65,1.97513056]
[1746776146901,0.29049199,633.13,632.65,1.97513056]
[1746776148703,0.825,633.14,632.65,1.97513056]
[1746776149010,0.29050612,633.13,632.65,1.97513056]
[1746776152310,0.825,633.14,632.65,1.97513056]
[1746776153711,0.998,633.13,632.65,1.97513056]
[1746776169726,0.686,633.12,632.65,1.97513056]
[1746776179632,1.006,633.11,632.65,1.97513056]
[1746776200744,0.603,633.1,632.65,1.97513056]
[1746776201150,0.29051772,633.09,632.65,1.97513056]
[1746776202854,0.603,633.1,632.65,1.97513056]
[1746776210161,0.693,633.09,632.65,1.97513056]
[1746776222074,0.684,633.08,632.65,1.97513056]
[1746776228987,1.642,633.08,632.65,1.97513056]
[1746776233087,0.29049931,633.07,632.65,1.97513056]
[1746776235387,1.642,633.08,632.65,1.97513056]
[1746776235784,0.29051404,633.07,632.65,1.97513056]
[1746776238089,1.642,633.08,632.65,1.97513056]
[1746776251798,1.642,633.08,632.65,1.659]
[1746776264710,0.29058405,633.07,632.65,1.659]
[1746776265311,0.29058405,633.29,632.65,1.659]
[1746776267313,0.873,633.28,632.65,1.659]
[1746776267506,1.687,633.28,632.65,1.659]
[1746776267910,0.29055219,633.27,632.65,1.659]
[1746776269711,0.27496839,633.26,632.65,1.659]
[1746776270210,0.29055219,633.25,632.65,1.659]
[1746776270410,0.29055219,633.25,632.66,0.31612556]
[1746776271712,0.29055219,633.27,632.66,0.31612556]
[1746776272707,0.27501837,633.26,632.66,0.31612556]
[1746776273013,0.29055219,633.25,632.66,0.31612556]
[1746776273212,0.29055219,633.25,632.66,1.20412556]
[1746776273512,0.29055219,633.25,632.66,1.87312556]
[1746776274713,0.27496948,633.24,632.66,1.87312556]
[1746776275308,0.29055219,633.23,632.66,1.87312556]
[1746776275916,0.27496948,633.24,632.66,1.87312556]
[1746776276415,0.2905522,633.23,632.66,1.87312556]
[1746776280720,0.27497817,633.22,632.66,1.87312556]
[1746776281120,0.2905522,633.21,632.66,1.87312556]
[1746776287027,0.2905522,633.27,632.66,1.87312556]
[1746776287228,1.96194993,633.28,632.66,1.87312556]
[1746776287524,0.29052273,633.27,632.66,1.87312556]
[1746776289426,1.687,633.28,632.66,1.87312556]